Workbook

Sheet 例題27a 気相PBR
A1: 微分方程式数 | B1: 2 | F1: 定数 | O1: <Fogler_5_7.fsd> | Q1: L=19.5m | S1: [m/s] | U1: [mol/s-kg] | X1: press. ratio
A2: W= | B2: xA= | C2: p= | F2: FA0= | G2: 0.1362 | H2: mol/s | P2: W[kg] | Q2: EthylenFlow | R2: xA | S2: v | T2: f | U2: rxn1 rate | W2: pressure | X2: p
A3: 27 | B3: 0.6639331749 | C3: 0.2717336725 | F3: a= | G3: 0.0367 | H3: /kg | O3: [0] | P3: 0 | Q3: 0.1362 | R3: =1-Q3/$Q$3 -> 0 | S3: 1.53 | T3: =S3/$S$3 -> 1 | U3: 0.00729 | V3: 0 | W3: 1013 | X3: =W3/$W$3 -> 1
B4: xA'= | C4: p'= | F4: e= | G4: -0.15 | O4: [10] | P4: 2.71 | Q4: 0.118 | R4: =1-Q4/$Q$3 -> 0.1336270191 | S4: 1.58 | T4: =S4/$S$3 -> 1.032679739 | U4: 0.00612 | V4: 5.42 | W4: 908 | X4: 0.8963474827
A5: 微分方程式→ | B5: =G6/G2 -> 0.005510403389 | C5: =-G3*(1+G4*B3)/2/C3 -> -0.06080410936 | F5: k'= | G5: 0.0074 | H5: mol/kg-s | O5: [20] | P5: 5.42 | Q5: 0.1028 | R5: 0.2452276065 | S5: 1.65 | T5: 1.078431373 | U5: 0.00512 | V5: 10.84 | W5: 793 | X5: 0.7828232971
F6: -rA'= | G6: =G5*((1-B3)/(1+G4*B3))*C3 -> 0.0007505169415 | H6: mol/kg-s | O6: [30] | P6: 8.13 | Q6: 0.0901 | R6: 0.3384728341 | S6: 1.73 | T6: 1.130718954 | U6: 0.00427 | V6: 16.26 | W6: 662 | X6: 0.6535044423
A7: 積分区間W=[a, | B7: 0 | F7: Wf= | G7: 27 | H7: kg | O7: [40] | P7: 10.84 | Q7: 0.0795 | R7: 0.4162995595 | S7: 1.83 | T7: 1.196078431 | U7: 0.00355 | V7: 21.68 | W7: 501 | X7: 0.4945705824
A8: b] | B8: =G7 -> 27 | F8: P0= | G8: 1013 | H8: kPa | O8: [50] | P8: 13.55 | Q8: 0.0707 | R8: 0.4809104258 | S8: 1.97 | T8: 1.287581699 | U8: 0.00294 | V8: 27.1 | W8: 254 | X8: 0.2507403751
A9: 積分刻み幅ΔW | B9: 1 | O9: [60] | P9: 16.26 | Q9: 0.0635 | R9: 0.533773862 | S9: 2.16 | T9: 1.411764706 | U9: 0.00241
A10: 計算結果 | O10: [70] | P10: 18.97 | Q10: 0.0576 | R10: 0.577092511 | S10: 2.42 | T10: 1.581699346 | U10: 0.00195
A11: W[kg] | B11: xA | C11: p | F11: f=v/v0 | G11: -rA' | O11: [80] | P11: 21.68 | Q11: 0.0528 | R11: 0.6123348018 | S11: 2.82 | T11: 1.843137255 | U11: 0.00154
A12: 0 | B12: 0 | C12: 1 | E12: ←初期値 | F12: =(1+$G$4*B12)/C12 -> 1 | G12: =($G$5*(1-B12)/(1+$G$4*B12))*C12 -> 0.0074 | O12: [90] | P12: 24.39 | Q12: 0.0492 | R12: 0.6387665198 | S12: 3.54 | T12: 2.31372549 | U12: 0.00114
A13: 1 | B13: 0.05261224265 | C13: 0.9815530439 | F13: =(1+$G$4*B13)/C13 -> 1.010753489 | G13: =($G$5*(1-B13)/(1+$G$4*B13))*C13 -> 0.00693608232 | O13: [100] | P13: 27.1 | Q13: 0.0467 | R13: 0.6571218796 | S13: 5.51 | T13: 3.60130719 | U13: 0.000695
A14: 2 | B14: 0.1019161119 | C14: 0.9628983284 | F14: 1.022654785 | G14: 0.006498596465
A15: 3 | B15: 0.1481012002 | C15: 0.9440141695 | F15: 1.035773457 | G15: 0.006086322328 | O15: D | P15: 0.0409 | Q15: m
A16: 4 | B16: 0.1913481203 | C16: 0.9248775023 | F16: 1.050190733 | G16: 0.005698035341 | O16: L | P16: 19.5 | Q16: m
A17: 5 | B17: 0.2318285023 | C17: 0.9054636487 | F17: 1.066001629 | G17: 0.005332514442 | O17: V | P17: =P16*(3.14/4)*P15^2 -> 0.02560653908 | Q17: m3
A18: 6 | B18: 0.2697050453 | C18: 0.8857460407 | F18: 1.083317564 | G18: 0.00498854892 | O18: ρb | P18: 1059 | Q18: kg/m3
A19: 7 | B19: 0.305131615 | C19: 0.8656958915 | F19: 1.102269593 | G19: 0.004664944114 | O19: W | P19: =P17*P18 -> 27.11732488 | Q19: kg
A20: 8 | B20: 0.3382533788 | C20: 0.8452817985 | F20: 1.123012461 | G20: 0.004360525965
A21: 9 | B21: 0.3692069703 | C21: 0.8244692644 | F21: 1.145729738 | G21: 0.00407414442
A22: 10 | B22: 0.398120675 | C22: 0.8032201097 | F22: 1.170640385 | G22: 0.003804675681
A23: 11 | B23: 0.425114627 | C23: 0.781491749 | F23: 1.198007282 | G23: 0.003551023291
A24: 12 | B24: 0.4503010106 | C24: 0.759236287 | F24: 1.228148423 | G24: 0.003312118019
A25: 13 | B25: 0.4737842558 | C25: 0.7363993768 | F25: 1.261451857 | G25: 0.003086916464
A26: 14 | B26: 0.4956612183 | C26: 0.7129187583 | F26: 1.298395934 | G26: 0.002874398237
A27: 15 | B27: 0.5160213336 | C27: 0.688722359 | F27: 1.339577245 | G27: 0.002673561488
A28: 16 | B28: 0.53494673 | C28: 0.6637257841 | F28: 1.385749978 | G28: 0.002483416383
A29: 17 | B29: 0.5525122856 | C29: 0.6378289376 | F29: 1.437882641 | G29: 0.002302975912
A30: 18 | B30: 0.5687856039 | C30: 0.6109113702 | F30: 1.497241996 | G30: 0.002131243005
A31: 19 | B31: 0.5838268772 | C31: 0.5828257179 | F31: 1.565521116 | G31: 0.001967192315
A32: 20 | B32: 0.5976885886 | C32: 0.553388168 | F32: 1.645041879 | G32: 0.001809743863
A33: 21 | B33: 0.6104149763 | C33: 0.5223641208 | F33: 1.739089109 | G33: 0.001657723667
A34: 22 | B34: 0.6220411356 | C34: 0.4894457041 | F34: 1.852491139 | G34: 0.001509802416
A35: 23 | B35: 0.6325915416 | C35: 0.4542146458 | F35: 1.992695033 | G35: 0.001364394725
A36: 24 | B36: 0.6420775842 | C36: 0.4160768246 | F36: 2.171926695 | G36: 0.001219482169
A37: 25 | B37: 0.650493289 | C37: 0.3741365357 | F37: 2.412023207 | G37: 0.001072273954
A38: 26 | B38: 0.657807332 | C38: 0.3269244256 | F38: 2.756994674 | G38: 0.0009184732081
A39: 27 | B39: 0.6639462537 | C39: 0.2716940911 | F39: =(1+$G$4*B39)/C39 -> 3.314050954 | G39: 0.0007503800506
K41: =1.53*3.31 -> 5.0643
